[Event "CRO Team Cup 2019"]
[Site "Losinj"]
[Date "2019.05.15"]
[Round "1.12"]
[White "Pavcevic, Bruno"]
[Black "Rogic, Davor"]
[Result "1/2-1/2"]
[ECO "B40"]
[WhiteElo "2098"]
[BlackElo "2498"]
[Annotator "ChessBase"]
[PlyCount "83"]
[EventDate "2019.05.15"]
[EventType "team-tourn"]
[EventCountry "CRO"]
[SourceTitle "playchess.com"]
[Source "ChessBase"]
[SourceQuality "1"]
[TimeControl "40/5400+30:1800+30"]

1. e4 {[%emt 0:00:30]} c5 {[%emt 0:00:30]} 2. Nf3 {[%emt 0:02:30]} e6 {[%emt 0:00:00]} 3. c4 {[%emt 0:05:30]} Nc6 {[%emt 0:02:00]} 4. d3 {[%emt 0:07:30]} Nf6 {[%emt 0:06:30]} 5. Be2 {[%emt 0:04:30]} d5 {[%emt 0:03:30]} 6. Nbd2 {[%emt 0:01:30]} Be7 {[%emt 0:01:30]} 7. O-O {[%emt 0:01:30]} O-O {[%emt 0:00:30]} 8. b3 {[%emt 0:04:30]} b6 {[%emt 0:01:30]} 9. Bb2 {[%emt 0:00:30]} Bb7 {[%emt 0:00:30]} 10. Re1 {[%emt 0:05:30]} Qc7 {[%emt 0:03:30]} 11. e5 {[%emt 0:10:30]} Nd7 {[%emt 0:05:30]} 12. cxd5 {[%emt 0:08:30]} exd5 {[%emt 0:00:30]} 13. d4 {[%emt 0:01:30]} cxd4 {[%emt 0:04:30]} 14. Bd3 {[%emt 0:01:30]} h6 {[%emt 0:07:30]} 15. Rc1 {[%emt 0:03:30]} Bc5 {[%emt 0:03:30]} 16. Bb1 {[%emt 0:01:30]} Rfe8 {[%emt 0:07:30]} 17. Qc2 {[%emt 0:02:30]} Nf8 {[%emt 0:00:30]} 18. Nxd4 {[%emt 0:02:30]} Qd7 {[%emt 0:05:30]} 19. N2f3 {[%emt 0:06:30]} Bxd4 {[%emt 0:05:30]} 20. Bxd4 {[%emt 0:04:30]} Nxd4 {[%emt 0:00:30]} 21. Nxd4 {[%emt 0:00:30]} Rac8 {[%emt 0:02:30]} 22. Qd2 {[%emt 0:03:30]} Rxc1 {[%emt 0:07:30]} 23. Qxc1 {[%emt 0:00:38]} Qg4 {[%emt 0:02:30]} 24. Qd2 {[%emt 0:03:28]} Ne6 {[%emt 0:01:30]} 25. Nxe6 {[%emt 0:01:02]} Qxe6 {[%emt 0:01:30]} 26. Qd3 {[%emt 0:03:01]} g6 {[%emt 0:01:30]} 27. f4 {[%emt 0:01:10]} Qg4 {[%emt 0:04:30]} 28. Qd4 {[%emt 0:02:36]} Rc8 {[%emt 0:01:30]} 29. e6 {[%emt 0:04:54]} fxe6 {[%emt 0:00:30]} 30. h3 {[%emt 0:00:59]} Qg3 {[%emt 0:02:16]} 31. Qe5 {[%emt 0:00:11]} Rc6 {[%emt 0:00:13]} 32. Bc2 {[%emt 0:02:31]} Kf7 {[%emt 0:02:48]} 33. Re3 {[%emt 0:01:11]} Qh4 {[%emt 0:00:10]} 34. Bxg6+ {[%emt 0:01:51]} Kxg6 {[%emt 0:02:00]} 35. f5+ {[%emt 0:00:01]} Kh7 {[%emt 0:02:57]} 36. Rg3 {[%emt 0:00:18]} Qe7 {[%emt 0:06:09]} 37. f6 {[%emt 0:00:16]} Qd6 {[%emt 0:01:07]} 38. Qh5 {[%emt 0:02:55]} Qxg3 {[%emt 0:04:14]} 39. Qf7+ {[%emt 0:00:04]} Kh8 {[%emt 0:00:08]} 40. Qf8+ {[%emt 0:00:04]} Kh7 {[%emt 0:01:08]} 41. Qf7+ {[%emt 0:30:06]} Kh8 {[%emt 0:30:08]} 42. Qf8+ {[%emt 0:00:07]} 1/2-1/2

[Event "CRO Team Cup 2019"]
[Site "Losinj"]
[Date "2019.05.15"]
[Round "1.20"]
[White "Kovac, Petar"]
[Black "Cotic, Borna"]
[Result "0-1"]
[ECO "E05"]
[WhiteElo "1874"]
[BlackElo "2103"]
[Annotator "NA"]
[PlyCount "70"]
[EventDate "2019.05.15"]
[EventType "team-tourn"]
[EventCountry "CRO"]
[SourceTitle "playchess.com"]
[Source "ChessBase"]
[SourceQuality "1"]
[TimeControl "40/5400+30:1800+30"]

1. d4 {[%emt 0:00:30]} Nf6 {[%emt 0:00:30]} 2. c4 {[%emt 0:00:00]} e6 {[%emt 0:00:00]} 3. Nf3 {[%emt 0:00:00]} d5 {[%emt 0:00:00]} 4. g3 {[%emt 0:00:30]} Be7 {[%emt 0:00:30]} 5. Bg2 {[%emt 0:00:00]} O-O {[%emt 0:00:30]} 6. O-O {[%emt 0:00:00]} dxc4 {[%emt 0:00:30]} 7. Qc2 {[%emt 0:00:30]} a6 {[%emt 0:00:30]} 8. Qxc4 {[%emt 0:00:30]} b5 {[%emt 0:00:00]} 9. Qc2 {[%emt 0:00:30]} Bb7 {[%emt 0:00:00]} 10. Bf4 {[%emt 0:00:30]} Nd5 {[%emt 0:02:30] E05: Open Catalan: 5 Nf3 Be7} (10... Nc6 11. Rd1 Rc8 12. a3 Na5 13. Nc3 Nd5 14. b4 Nc4 15. Ne5 Nxe5 16. Bxe5 Nxc3 17. Bxb7 Nxd1 18. Rxd1 Qd7 19. Rc1 {1-0 (115) Meier,G (2628)-Dominguez Perez,L (2739) chess.com INT 2018}) 11. Rd1 {[%emt 0:02:30]} Nd7 {[%emt 0:04:30]} 12. e4 {[%emt 0:03:30]} Nxf4 {[%emt 0:10:30]} 13. gxf4 {[%emt 0:00:00]} Nf6 $146 {[%emt 0:02:30]} ({Predecessor:} 13... Qc8 14. Nc3 c5 15. d5 exd5 16. Nxd5 Bxd5 17. Rxd5 Nf6 18. Re5 {0-1 (27) Edgell,B (2005)-Spence,D (2174) Sunningdale 2007}) 14. Ne5 {[%emt 0:02:00]} Qd6 {[%emt 0:18:30]} 15. a3 {[%emt 0:04:30] [#]} c5 {[%emt 0:07:30]} (15... Nh5 $1 $17 {[%cal Rh5f4]} 16. Qc1 Rad8) 16. d5 {[%emt 0:07:30]} exd5 {[%emt 0:03:30]} 17. exd5 {[%emt 0:00:30]} Rad8 {[%emt 0:21:30]} 18. Nc3 {[%emt 0:04:30]} Qc7 {[%emt 0:00:30]} 19. Rd2 {[%emt 0:07:30]} Bd6 {[%emt 0:02:30]} 20. Re1 {[%emt 0:08:30]} Rfe8 {[%emt 0:01:30]} 21. Ne4 $17 {[%emt 0:24:30]} Nxe4 {[%emt 0:06:03]} 22. Bxe4 {[%emt 0:00:30]} h6 {[%emt 0:05:23]} 23. Rde2 {[%emt 0:02:30]} Bxe5 {[%emt 0:01:45]} 24. fxe5 {[%emt 0:00:30]} Bxd5 {[%emt 0:00:37]} 25. Bxd5 {[%emt 0:00:30]} Rxd5 {[%emt 0:00:09]} 26. f4 {[%emt 0:00:30]} c4 {[%emt 0:01:10]} 27. Rg2 {[%emt 0:00:30]} Rd3 {[%emt 0:01:22]} 28. Kh1 {[%emt 0:03:30]} Qd7 {[%emt 0:00:40]} 29. Reg1 {[%emt 0:00:30]} g6 {[%emt 0:00:50]} 30. Qf2 {[%emt 0:01:30]} Qf5 {[%emt 0:00:36]} 31. Qb6 {[%emt 0:03:30]} Re6 {[%emt 0:00:31]} 32. Qf2 {[%emt 0:03:30]} Kg7 {[%emt 0:00:41]} 33. Qh4 {[%emt 0:05:06]} Rd4 {[%emt 0:01:28]} 34. Rf2 {[%emt 0:00:16]} Qe4+ {[%emt 0:01:04]} 35. Rfg2 {[%emt 0:00:10]} Qxf4 {[%emt 0:00:31]} 0-1

[Event "CRO Team Cup 2019"]
[Site "Losinj"]
[Date "2019.05.16"]
[Round "2.2"]
[White "Markus, Robert"]
[Black "Vernacki, Srdjan"]
[Result "1-0"]
[ECO "A77"]
[WhiteElo "2595"]
[BlackElo "2338"]
[Annotator "ChessBase"]
[PlyCount "73"]
[EventDate "2019.05.15"]
[EventType "team-tourn"]
[EventCountry "CRO"]
[SourceTitle "playchess.com"]
[Source "ChessBase"]
[SourceQuality "1"]
[TimeControl "40/5400+30:1800+30"]

1. d4 {[%emt 0:00:30]} Nf6 {[%emt 0:00:30]} 2. c4 {[%emt 0:00:00]} c5 {[%emt 0:00:00]} 3. d5 {[%emt 0:00:00]} e6 {[%emt 0:00:00]} 4. Nc3 {[%emt 0:00:30]} exd5 {[%emt 0:00:00]} 5. cxd5 {[%emt 0:00:00]} d6 {[%emt 0:00:00]} 6. Nf3 {[%emt 0:01:00]} g6 {[%emt 0:00:00]} 7. Nd2 {[%emt 0:00:30]} Bg7 {[%emt 0:00:00]} 8. e4 {[%emt 0:00:00]} O-O {[%emt 0:00:30]} 9. Be2 {[%emt 0:00:00]} a6 {[%emt 0:01:30]} 10. a4 {[%emt 0:00:30]} Re8 {[%emt 0:00:30]} 11. O-O {[%emt 0:00:00]} Nbd7 {[%emt 0:00:00]} 12. Qc2 {[%emt 0:08:00]} Ne5 {[%emt 0:04:00]} 13. Nb3 {[%emt 0:12:30]} c4 {[%emt 0:15:30]} 14. Nd4 {[%emt 0:04:30]} Qb6 {[%emt 0:04:30]} 15. a5 {[%emt 0:08:30]} Qxd4 {[%emt 0:08:30]} 16. Be3 {[%emt 0:00:00]} Nf3+ {[%emt 0:00:30]} 17. Bxf3 {[%emt 0:00:00]} Qe5 {[%emt 0:00:00]} 18. Qd1 {[%emt 0:15:30]} Bd7 {[%emt 0:09:00]} 19. Bd4 {[%emt 0:08:30]} Qe7 {[%emt 0:11:30]} 20. Re1 {[%emt 0:03:30]} h5 {[%emt 0:06:30]} 21. Qd2 {[%emt 0:05:30]} Bg4 {[%emt 0:20:44]} 22. Bd1 {[%emt 0:00:30]} Bxd1 {[%emt 0:02:21]} 23. Raxd1 {[%emt 0:00:30]} Qc7 {[%emt 0:05:39]} 24. Bb6 {[%emt 0:03:30]} Qd7 {[%emt 0:04:54]} 25. f4 {[%emt 0:02:30]} Rac8 {[%emt 0:02:39]} 26. h3 {[%emt 0:02:30]} Nh7 {[%emt 0:01:58]} 27. Kh1 {[%emt 0:03:30]} Bh6 {[%emt 0:01:31]} 28. Qf2 {[%emt 0:01:30]} g5 {[%emt 0:00:40]} 29. fxg5 {[%emt 0:03:55]} Bxg5 {[%emt 0:00:01]} 30. e5 {[%emt 0:02:13]} Rxe5 {[%emt 0:00:30]} 31. Rxe5 {[%emt 0:00:37]} dxe5 {[%emt 0:00:02]} 32. Ne4 {[%emt 0:00:00]} Bf4 {[%emt 0:01:13]} 33. d6 {[%emt 0:01:34]} Qa4 {[%emt 0:00:44]} 34. Qe2 {[%emt 0:00:19]} Nf8 {[%emt 0:00:31]} 35. d7 {[%emt 0:01:33]} Nxd7 {[%emt 0:00:24]} 36. Rxd7 {[%emt 0:00:05]} Rc6 {[%emt 0:00:38]} 37. Qxh5 {[%emt 0:00:52]} 1-0

[Event "CRO Team Cup 2019"]
[Site "Losinj"]
[Date "2019.05.16"]
[Round "2.5"]
[White "Kozul, Zdenko"]
[Black "Jovanovic, Zoran"]
[Result "1-0"]
[ECO "A41"]
[WhiteElo "2582"]
[BlackElo "2512"]
[Annotator "ChessBase"]
[PlyCount "71"]
[EventDate "2019.05.15"]
[EventType "team-tourn"]
[EventCountry "CRO"]
[SourceTitle "playchess.com"]
[Source "ChessBase"]
[SourceQuality "1"]
[TimeControl "40/5400+30:1800+30"]

1. d4 {[%emt 0:01:30]} d6 {[%emt 0:01:30]} 2. Nf3 {[%emt 0:00:00]} g6 {[%emt 0:00:30]} 3. c4 {[%emt 0:00:00]} Bg7 {[%emt 0:00:30]} 4. Nc3 {[%emt 0:00:30]} Bg4 {[%emt 0:01:30]} 5. e3 {[%emt 0:00:30]} e5 {[%emt 0:02:30]} 6. d5 {[%emt 0:01:30]} a5 {[%emt 0:09:30]} 7. e4 {[%emt 0:05:30]} Nd7 {[%emt 0:03:30]} 8. h3 {[%emt 0:02:30]} Bxf3 {[%emt 0:00:30]} 9. Qxf3 {[%emt 0:00:30]} h5 {[%emt 0:06:30]} 10. Bd3 {[%emt 0:08:30]} Bh6 {[%emt 0:03:30]} 11. Bxh6 {[%emt 0:01:30]} Nxh6 {[%emt 0:00:30]} 12. O-O-O {[%emt 0:00:30]} h4 {[%emt 0:06:30]} 13. Kb1 {[%emt 0:01:30]} Ng8 {[%emt 0:01:30]} 14. Qe3 {[%emt 0:12:30]} Ngf6 {[%emt 0:02:30]} 15. Be2 {[%emt 0:00:30]} Kf8 {[%emt 0:04:30]} 16. Rdg1 {[%emt 0:06:30]} Nh5 {[%emt 0:19:30]} 17. g3 {[%emt 0:02:30]} Nc5 {[%emt 0:01:30]} 18. Bxh5 {[%emt 0:06:30]} Rxh5 {[%emt 0:00:00]} 19. g4 {[%emt 0:00:00]} Rh7 {[%emt 0:00:00]} 20. f4 {[%emt 0:01:00]} exf4 {[%emt 0:01:30]} 21. Qxf4 {[%emt 0:00:00]} Qe7 {[%emt 0:02:30]} 22. Kc2 {[%emt 0:01:00]} Re8 {[%emt 0:00:30]} 23. Re1 {[%emt 0:00:30]} Qe5 {[%emt 0:00:30]} 24. Rhf1 {[%emt 0:03:30]} Qd4 {[%emt 0:05:30]} 25. Rf3 {[%emt 0:11:30]} Qxc4 {[%emt 0:05:44]} 26. Qg5 {[%emt 0:02:30]} Qd4 {[%emt 0:04:13]} 27. e5 {[%emt 0:07:30]} Rxe5 {[%emt 0:06:21]} 28. Qd8+ {[%emt 0:02:30]} Kg7 {[%emt 0:00:04]} 29. Ref1 {[%emt 0:00:00]} f5 {[%emt 0:03:13]} 30. Qxc7+ {[%emt 0:02:00]} Kg8 {[%emt 0:00:30]} 31. Qd8+ {[%emt 0:07:06]} Kg7 {[%emt 0:00:17]} 32. gxf5 {[%emt 0:00:12]} Rxf5 {[%emt 0:07:24]} 33. Rxf5 {[%emt 0:00:00]} gxf5 {[%emt 0:00:41]} 34. Qg5+ {[%emt 0:00:00]} Kh8 {[%emt 0:00:30]} 35. Rxf5 {[%emt 0:00:29]} Qg7 {[%emt 0:00:30]} 36. Qd8+ {[%emt 0:00:00]} 1-0

[Event "CRO Team Cup 2019"]
[Site "Losinj"]
[Date "2019.05.16"]
[Round "2.7"]
[White "Palac, Mladen"]
[Black "Dutina, Dario"]
[Result "1-0"]
[ECO "A80"]
[WhiteElo "2546"]
[BlackElo "2225"]
[Annotator "RC"]
[PlyCount "57"]
[EventDate "2019.05.15"]
[EventType "team-tourn"]
[EventCountry "CRO"]
[SourceTitle "playchess.com"]
[Source "ChessBase"]
[SourceQuality "1"]
[TimeControl "40/5400+30:1800+30"]

1. d4 {[%emt 0:06:30]} f5 {[%emt 0:02:30]} 2. Bg5 {[%emt 0:00:30]} h6 {[%emt 0:04:30]} 3. Bh4 {[%emt 0:00:30]} g5 {[%emt 0:06:30]} 4. e3 {[%emt 0:00:30]} Nf6 {[%emt 0:00:00]} 5. Bg3 {[%emt 0:00:00]} Bg7 {[%emt 0:02:00]} 6. Nd2 {[%emt 0:05:00]} b6 {[%emt 0:10:30]} 7. h4 {[%emt 0:10:30]} g4 {[%emt 0:18:30]} 8. h5 {[%emt 0:00:30]} O-O {[%emt 0:10:30]} 9. Ne2 {[%emt 0:05:30]} d5 {[%emt 0:09:30]} 10. Nf4 {[%emt 0:01:30]} Re8 {[%emt 0:03:30]} 11. c4 {[%emt 0:06:30]} c5 {[%emt 0:04:30]} 12. cxd5 {[%emt 0:14:30]} cxd4 {[%emt 0:00:30]} 13. Bb5 {[%emt 0:00:30]} e5 {[%emt 0:11:57]} 14. dxe6 {[%emt 0:00:30]} Re7 {[%emt 0:03:28]} 15. Nb3 {[%emt 0:04:30]} Nd5 {[%emt 0:04:55]} 16. Ng6 {[%emt 0:08:30]} Rxe6 {[%emt 0:01:56]} 17. Nxd4 {[%emt 0:00:30]} Re4 {[%emt 0:02:21]} 18. Bc6 {[%emt 0:17:29]} Rxd4 {[%emt 0:00:25]} 19. Bxd5+ {[%emt 0:01:33]} Kh7 {[%emt 0:00:46]} 20. exd4 {[%emt 0:01:47]} Qxd5 {[%emt 0:00:16]} 21. O-O {[%emt 0:00:03]} Bb7 {[%emt 0:00:30]} 22. Nf4 {[%emt 0:01:00]} Qxd4 {[%emt 0:00:39]} 23. Qb3 {[%emt 0:03:47]} Na6 {[%emt 0:00:35]} 24. Qf7 {[%emt 0:01:29]} Be4 {[%emt 0:00:21]} 25. Rad1 {[%emt 0:02:59]} Qxb2 {[%emt 0:00:26]} 26. Ne6 {[%emt 0:02:06]} Nc5 {[%emt 0:00:43]} 27. Nxc5 {[%emt 0:00:35]} bxc5 {[%emt 0:00:05]} 28. Rd7 {[%emt 0:00:02]} Rf8 {[%emt 0:00:25]} 29. Qxf8 {[%emt 0:00:52]} 1-0

[Event "CRO Team Cup 2019"]
[Site "Losinj"]
[Date "2019.05.16"]
[Round "2.11"]
[White "Blazeka, Matej"]
[Black "Rogic, Davor"]
[Result "0-1"]
[ECO "C47"]
[WhiteElo "2357"]
[BlackElo "2498"]
[Annotator "RC"]
[PlyCount "142"]
[EventDate "2019.05.15"]
[EventType "team-tourn"]
[EventCountry "CRO"]
[SourceTitle "playchess.com"]
[Source "ChessBase"]
[SourceQuality "1"]
[TimeControl "40/5400+30:1800+30"]

1. e4 {[%emt 0:00:30]} e5 {[%emt 0:00:30]} 2. Nf3 {[%emt 0:00:00]} Nc6 {[%emt 0:00:00]} 3. Nc3 {[%emt 0:00:00]} Nf6 {[%emt 0:00:00]} 4. a3 {[%emt 0:00:00]} d6 {[%emt 0:08:30]} 5. d4 {[%emt 0:00:00]} Be7 {[%emt 0:02:30]} 6. Bb5 {[%emt 0:00:30]} Bd7 {[%emt 0:04:30]} 7. O-O {[%emt 0:00:30]} O-O {[%emt 0:01:30]} 8. dxe5 {[%emt 0:00:30]} Nxe5 {[%emt 0:04:30]} 9. Nxe5 {[%emt 0:05:30]} Bxb5 {[%emt 0:06:30]} 10. Nxb5 {[%emt 0:01:30]} dxe5 {[%emt 0:00:30]} 11. Qe2 {[%emt 0:01:30]} a6 {[%emt 0:06:30]} 12. Rd1 {[%emt 0:06:30]} Qc8 {[%emt 0:00:30]} 13. Nc3 {[%emt 0:00:30]} c6 {[%emt 0:05:30]} 14. Bg5 {[%emt 0:03:30]} Rd8 {[%emt 0:05:30]} 15. a4 {[%emt 0:15:30]} Qe6 {[%emt 0:09:30]} 16. Be3 {[%emt 0:25:30]} Rxd1+ {[%emt 0:04:30]} 17. Qxd1 {[%emt 0:01:30]} Qc4 {[%emt 0:04:30]} 18. f3 {[%emt 0:09:30]} Rd8 {[%emt 0:02:30]} 19. Qe1 {[%emt 0:04:30]} Bb4 {[%emt 0:04:30]} 20. Qe2 {[%emt 0:01:30]} Qe6 {[%emt 0:01:30]} 21. Na2 {[%emt 0:02:51]} Be7 {[%emt 0:02:30]} 22. Nc1 {[%emt 0:03:00]} Nh5 {[%emt 0:02:30]} 23. g3 {[%emt 0:01:14]} g6 {[%emt 0:01:30]} 24. Nd3 {[%emt 0:04:48]} Ng7 {[%emt 0:02:00]} 25. b3 {[%emt 0:02:59]} Qd6 {[%emt 0:08:33]} 26. Bb6 {[%emt 0:02:51]} Rd7 {[%emt 0:00:53]} 27. Bc5 {[%emt 0:02:36]} Qf6 {[%emt 0:01:40]} 28. Bxe7 {[%emt 0:01:27]} Qxe7 {[%emt 0:00:06]} 29. Qf2 {[%emt 0:01:06]} Rd4 {[%emt 0:01:01]} 30. Re1 {[%emt 0:01:21]} c5 {[%emt 0:00:44]} 31. f4 {[%emt 0:00:54]} exf4 {[%emt 0:03:13]} 32. Nxf4 {[%emt 0:00:08]} Rxe4 {[%emt 0:00:00]} 33. Rxe4 {[%emt 0:00:20]} Qxe4 {[%emt 0:00:32]} 34. Qxc5 {[%emt 0:00:30]} Nf5 {[%emt 0:00:30]} 35. Qc8+ {[%emt 0:00:31]} Kg7 {[%emt 0:00:02]} 36. Qc3+ {[%emt 0:00:30]} Qd4+ {[%emt 0:00:30]} 37. Qxd4+ {[%emt 0:00:47]} Nxd4 {[%emt 0:00:30]} 38. Nd3 {[%emt 0:00:46]} Nxc2 {[%emt 0:01:49]} 39. Nc5 {[%emt 0:00:20]} Nd4 {[%emt 0:00:23]} 40. b4 {[%emt 0:00:49]} Nc6 {[%emt 0:00:00]} 41. b5 {[%emt 0:05:42]} axb5 {[%emt 0:01:34]} 42. axb5 {[%emt 0:00:30]} Nd8 {[%emt 0:00:30]} 43. Kf2 {[%emt 0:03:30]} Kf6 {[%emt 0:00:30]} 44. Ke3 {[%emt 0:01:30]} Ke5 {[%emt 0:00:30]} 45. Nd7+ {[%emt 0:00:30]} Kd6 {[%emt 0:00:30]} 46. Nf6 {[%emt 0:00:30]} h5 {[%emt 0:01:30]} 47. Kd4 {[%emt 0:02:30]} Ne6+ {[%emt 0:01:30]} 48. Kc4 {[%emt 0:00:00]} Ng5 {[%emt 0:02:30]} 49. Ne8+ {[%emt 0:01:03]} Ke7 {[%emt 0:04:30]} 50. Nc7 {[%emt 0:00:27]} Kd7 {[%emt 0:02:30]} 51. Nd5 {[%emt 0:00:30]} Kd6 {[%emt 0:00:30]} 52. Nf6 {[%emt 0:00:30]} Ke6 {[%emt 0:03:30]} 53. h4 {[%emt 0:05:48]} Kxf6 {[%emt 0:02:30]} 54. hxg5+ {[%emt 0:00:03]} Kxg5 {[%emt 0:00:30]} 55. Kc5 {[%emt 0:00:03]} h4 {[%emt 0:00:30]} 56. gxh4+ {[%emt 0:00:04]} Kxh4 {[%emt 0:00:00]} 57. Kb6 {[%emt 0:00:05]} f5 {[%emt 0:06:00]} 58. Kxb7 {[%emt 0:00:00]} f4 {[%emt 0:01:16]} 59. b6 {[%emt 0:01:45]} f3 {[%emt 0:00:00]} 60. Kc6 {[%emt 0:00:54]} f2 {[%emt 0:00:00]} 61. b7 {[%emt 0:00:58]} f1=Q {[%emt 0:00:00]} 62. b8=Q {[%emt 0:01:01]} Qf3+ {[%emt 0:00:00]} 63. Kc5 {[%emt 0:00:16]} Qf2+ {[%emt 0:00:00]} 64. Kc4 {[%emt 0:00:30]} g5 {[%emt 0:00:00]} 65. Qd8 {[%emt 0:00:31]} Qe3 {[%emt 0:00:00]} 66. Kb5 {[%emt 0:00:35]} Kh3 {[%emt 0:00:00]} 67. Qh8+ {[%emt 0:00:14]} Kg3 {[%emt 0:00:00]} 68. Qb8+ {[%emt 0:00:13]} Qf4 {[%emt 0:00:00]} 69. Qa7 {[%emt 0:00:22]} Qf5+ {[%emt 0:00:00]} 70. Kc6 {[%emt 0:00:28]} Qf2 {[%emt 0:01:14]} 71. Qb8+ {[%emt 0:00:18]} Kg2 {[%emt 0:00:30]} 0-1

[Event "CRO Team Cup 2019"]
[Site "Losinj"]
[Date "2019.05.16"]
[Round "2.12"]
[White "Kovacevic, Vlatko"]
[Black "Brumen, Dinko"]
[Result "1-0"]
[ECO "D46"]
[WhiteElo "2470"]
[BlackElo "2320"]
[Annotator "RC"]
[PlyCount "151"]
[EventDate "2019.05.15"]
[EventType "team-tourn"]
[EventCountry "CRO"]
[SourceTitle "playchess.com"]
[Source "ChessBase"]
[SourceQuality "1"]
[TimeControl "40/5400+30:1800+30"]

1. d4 {[%emt 0:00:30]} Nf6 {[%emt 0:00:30]} 2. Nf3 {[%emt 0:00:00]} d5 {[%emt 0:00:00]} 3. e3 {[%emt 0:00:00]} c6 {[%emt 0:03:00]} 4. c4 {[%emt 0:01:30]} e6 {[%emt 0:01:30]} 5. Nbd2 {[%emt 0:01:30]} Nbd7 {[%emt 0:01:30]} 6. Bd3 {[%emt 0:00:30]} Bd6 {[%emt 0:01:30]} 7. O-O {[%emt 0:00:30]} O-O {[%emt 0:00:30]} 8. e4 {[%emt 0:00:30]} dxe4 {[%emt 0:08:30]} 9. Nxe4 {[%emt 0:01:30]} Nxe4 {[%emt 0:00:30]} 10. Bxe4 {[%emt 0:00:00]} h6 {[%emt 0:01:30]} 11. Bc2 {[%emt 0:02:00]} e5 {[%emt 0:20:30]} 12. Re1 {[%emt 0:17:30]} Bb4 {[%emt 0:04:30]} 13. Bd2 {[%emt 0:09:30]} Bxd2 {[%emt 0:01:30]} 14. Qxd2 {[%emt 0:00:30]} exd4 {[%emt 0:01:30]} 15. Nxd4 {[%emt 0:02:30]} Nf6 {[%emt 0:05:30]} 16. Qc3 {[%emt 0:10:30]} c5 {[%emt 0:03:30]} 17. Nb5 {[%emt 0:06:30]} Be6 {[%emt 0:05:30]} 18. Rad1 {[%emt 0:04:30]} Qb8 {[%emt 0:01:30]} 19. Nd6 {[%emt 0:04:30]} Rd8 {[%emt 0:03:30]} 20. Qg3 {[%emt 0:02:30]} Ne8 {[%emt 0:05:30]} 21. Nxe8 {[%emt 0:10:30]} Qxg3 {[%emt 0:04:30]} 22. hxg3 {[%emt 0:00:30]} Rxd1 {[%emt 0:02:30]} 23. Bxd1 {[%emt 0:00:30]} Rxe8 {[%emt 0:00:30]} 24. Bf3 {[%emt 0:00:30]} Rd8 {[%emt 0:04:16]} 25. Bxb7 {[%emt 0:02:30]} Rb8 {[%emt 0:01:27]} 26. Bd5 {[%emt 0:00:30]} Rxb2 {[%emt 0:02:00]} 27. Bxe6 {[%emt 0:00:30]} fxe6 {[%emt 0:00:05]} 28. Rxe6 {[%emt 0:01:32]} Rxa2 {[%emt 0:00:18]} 29. Rc6 {[%emt 0:00:28]} Ra1+ {[%emt 0:05:48]} 30. Kh2 {[%emt 0:00:30]} Ra5 {[%emt 0:00:03]} 31. g4 {[%emt 0:01:17]} Kf7 {[%emt 0:00:55]} 32. Kg3 {[%emt 0:01:12]} g5 {[%emt 0:07:47]} 33. Rxh6 {[%emt 0:00:36]} Ra4 {[%emt 0:00:29]} 34. Rd6 {[%emt 0:01:53]} Rxc4 {[%emt 0:00:09]} 35. Ra6 {[%emt 0:00:06]} Rc3+ {[%emt 0:00:36]} 36. f3 {[%emt 0:02:06]} Rc2 {[%emt 0:01:02]} 37. Rxa7+ {[%emt 0:00:24]} Kf6 {[%emt 0:00:09]} 38. Ra6+ {[%emt 0:00:23]} Kf7 {[%emt 0:00:28]} 39. Rd6 {[%emt 0:01:54]} c4 {[%emt 0:01:05]} 40. Rc6 {[%emt 0:05:25]} Kg7 {[%emt 0:00:34]} 41. Kh3 {[%emt 0:30:35]} Kf7 {[%emt 0:31:42]} 42. Rc5 {[%emt 0:00:36]} Kf6 {[%emt 0:00:31]} 43. g3 {[%emt 0:00:00]} Rc3 {[%emt 0:00:00]} 44. Kg2 {[%emt 0:00:00]} Rc2+ {[%emt 0:00:00]} 45. Kf1 {[%emt 0:00:00]} Rc1+ {[%emt 0:00:00]} 46. Ke2 {[%emt 0:00:00]} Rc2+ {[%emt 0:00:00]} 47. Ke3 {[%emt 0:00:00]} Rg2 {[%emt 0:00:00]} 48. Rxc4 {[%emt 0:00:00]} Rxg3 {[%emt 0:00:00]} 49. Ke4 {[%emt 0:00:00]} Rh3 {[%emt 0:00:00]} 50. Rc8 {[%emt 0:00:00]} Rg3 {[%emt 0:00:00]} 51. Rf8+ {[%emt 0:00:00]} Kg7 {[%emt 0:00:00]} 52. Rf5 {[%emt 0:00:00]} Kg6 {[%emt 0:00:00]} 53. Ke5 {[%emt 0:00:00]} Rh3 {[%emt 0:00:00]} 54. Ke6 {[%emt 0:00:00]} Rg3 {[%emt 0:00:00]} 55. Rf8 {[%emt 0:00:07]} Kg7 {[%emt 0:00:00]} 56. Rf6 {[%emt 0:01:40]} Rh3 {[%emt 0:00:00]} 57. Ke7 {[%emt 0:00:32]} Rh1 {[%emt 0:00:00]} 58. Re6 {[%emt 0:01:47]} Rf1 {[%emt 0:00:00]} 59. Re3 {[%emt 0:00:14]} Kg6 {[%emt 0:00:00]} 60. Kf8 {[%emt 0:00:27]} Kf6 {[%emt 0:00:00]} 61. Ra3 {[%emt 0:00:48]} Kg6 {[%emt 0:05:36]} 62. Kg8 {[%emt 0:00:35]} Kf6 {[%emt 0:01:02]} 63. Ra6+ {[%emt 0:03:22]} Ke5 {[%emt 0:01:11]} 64. Kg7 {[%emt 0:00:15]} Rxf3 {[%emt 0:02:22]} 65. Kg6 {[%emt 0:00:14]} Rf1 {[%emt 0:03:25]} 66. Kxg5 {[%emt 0:00:00]} Rg1 {[%emt 0:00:30]} 67. Kh5 {[%emt 0:00:00]} Rh1+ {[%emt 0:00:30]} 68. Kg6 {[%emt 0:00:00]} Rg1 {[%emt 0:00:30]} 69. g5 {[%emt 0:00:00]} Rb1 {[%emt 0:00:30]} 70. Kh6 {[%emt 0:00:10]} Kf5 {[%emt 0:00:30]} 71. g6 {[%emt 0:00:30]} Rh1+ {[%emt 0:00:30]} 72. Kg7 {[%emt 0:00:30]} Rb1 {[%emt 0:00:30]} 73. Kh7 {[%emt 0:00:30]} Rh1+ {[%emt 0:00:30]} 74. Kg8 {[%emt 0:00:30]} Rc1 {[%emt 0:00:30]} 75. g7 {[%emt 0:00:30]} Rc8+ {[%emt 0:00:30]} 76. Kh7 {[%emt 0:00:30]} 1-0